Cogmind - Beta 14 @@@ ROGUE MODE // 2024.08.23 @ 18:57:08 Player: THN-L0C Result: Destroyed by G-67 Veteran with Plasma Rifle Performance ------------- Evolutions (6) 3000 Regions Visited (11) 2200 Robots Destroyed (89) 445 Value Destroyed (3547) 3547 Prototype IDs (8) 160 Alien Tech Used (0) 0 Bonus (739) 739 TOTAL SCORE: 10091 Bonus ------- High Alert Combat Kills 500 Follower Combat Kills 501 Registered with UFD 300 Met Imprinter 300 Friendly Fire -862 Cogmind --------- Core Integrity 0/1150 Matter 300/300 Energy 100/100 System Corruption 19% Temperature Cool (0) Movement Core (150) Ox2 Location -4/Factory Parts ------- > --- POWER (1) -------- (None) > --- PROPULSION (6) --- (None) > --- UTILITY (10) ----- System Shield > --- WEAPON (2) ------- Companion Sword Plasma Lance > --- INVENTORY (5) ---- Antimatter Reactor Advanced Power Amplifier Hypervelocity Gauss Cannon Heavy Missile Launcher Micro-nuke Launcher Peak State ------------ > --- POWER ------------ Light Antimatter Reactor > --- PROPULSION ------- Myomer Leg Advanced Myomer Leg Overtuned Huge Scrapsphere Overtuned Huge Scrapsphere > --- UTILITY ---------- Scrap Suit High-capacity Storage Unit Advanced Signal Interpreter Advanced Terrain Scan Processor Improved Melee Analysis Suite Advanced Melee Analysis Suite Microactuators Advanced Transmission Jammer Advanced ECM Suite > --- WEAPON ----------- Plasma Lance Plasma Lance > --- INVENTORY -------- Neutrino Core Light Antimatter Reactor Advanced Power Amplifier Matter Compressor Improved Phase Shifter Improved Utility Shielding Improved Utility Shielding Graphene Brace Improved Shield Generator Dispersion Rifle KE Penetrator Overtuned Coil Gun Bore Cannon Hypervelocity Gauss Cannon Heavy Missile Launcher Heavy Missile Launcher Advanced Datajack CPS Tube Companion Sword Vortex Trap [Rating: 114] Favorites ----------- Power Fission Core Engine Light Angular Momentum Engine Power Core Fission Core Reactor Light Antimatter Reactor Propulsion Improved Treads Treads Improved Treads Leg Improved Titanium Leg Wheel Armored Huge Wheel Hover Unit Antigrav System Flight Unit Field Propulsion Array Utility Scrap Suit Device Scrap Suit Storage High-capacity Storage Unit Processor Advanced Signal Interpreter Hackware System Shield Protection Scrap Shield Weapon Improved Light Cannon Energy Gun Overtuned Beamcaster Energy Cannon Subdweller Beam Cannon Ballistic Gun Makeshift Shrapnel Gun Ballistic Cannon Improved Light Cannon Launcher Missile Launcher Special Weapon Remote Datajack Slashing Weapon Companion Sword Piercing Weapon CR-A16's Pointy Stick Build | -11 -10 -10 -9 -9 -6 -6 -6 -6 -5 -5 -4 ------- Run | Yrd Mat Sub Rec Scr Fac Low Low Zio Pro Fac Fac Slots Evolved 12 | . . . . . 8 . . . . 2 2 Power . | . . . . . . . . . . . . Propulsion 4 | . . . . . 4 . . . . . . Utility 8 | . . . . . 4 . . . . 2 2 Weapon . | . . . . . . . . . . . . Parts Attached 184 | 7 6 15 1 6 31 10 2 25 6 7 68 Power 23 | 1 3 2 . 1 2 1 1 2 . . 10 Engine 8 | 1 3 2 . . 1 . 1 . . . . Core 9 | . . . . 1 1 1 . 2 . . 4 Reactor 6 | . . . . . . . . . . . 6 Propulsion 42 | 2 . 3 1 1 8 1 1 6 1 . 18 Treads 19 | 2 . 3 1 1 3 . 1 3 1 . 4 Leg 11 | . . . . . 4 . . 2 . . 5 Wheel 6 | . . . . . 1 . . 1 . . 4 Hover 5 | . . . . . . 1 . . . . 4 Flight 1 | . . . . . . . . . . . 1 Utility 69 | 2 1 1 . 3 12 7 . 11 3 3 26 Device 39 | 1 . . . . 4 6 . 7 3 1 17 Storage 9 | 1 1 . . 3 2 . . 2 . . . Processor 8 | . . . . . 2 1 . 1 . . 4 Hackware 1 | . . . . . . . . . . . 1 Protection 12 | . . 1 . . 4 . . 1 . 2 4 Artifact . | . . . . . . . . . . . . Weapon 50 | 2 2 9 . 1 9 1 . 6 2 4 14 Energy Gun 3 | . . . . . 2 . . . 1 . . Energy Cannon 2 | . . 1 . . 1 . . . . . . Ballistic Gun 12 | 2 . 2 . . 1 1 . 2 . 1 3 Ballistic Cannon 7 | . . 4 . . . . . . . 1 2 Launcher 8 | . 1 2 . . 4 . . . . . 1 Special Weapon 3 | . 1 . . . . . . 2 . . . Impact Weapon . | . . . . . . . . . . . . Slashing Weapon 3 | . . . . 1 1 . . . . . 1 Piercing Weapon 12 | . . . . . . . . 2 1 2 7 Special Melee Weapon . | . . . . . . . . . . . . Unidentified Prototypes 7 | . . . . 1 1 . . 1 . . 4 Parts Lost 39 | . . 1 . . 1 . 3 . . 2 32 Power 6 | . . . . . . . 1 . . . 5 Propulsion 17 | . . . . . 1 . 1 . . . 15 Utility 14 | . . . . . . . . . . 2 12 Weapon 2 | . . 1 . . . . 1 . . . . Highest Loss Streak 7 | . . 1 . . 1 . 3 . . 1 7 To Critical Strikes . | . . . . . . . . . . . . Average Slot Usage (%) 83 | . 100 93 85 84 82 83 79 77 80 81 75 Engine 4 | . 14 14 14 3 2 . 2 5 . . . Core 4 | . . . . 10 3 6 3 . 6 5 2 Treads 19 | . 28 28 28 28 19 13 9 10 13 11 4 Leg 3 | . . . . . 5 6 6 11 . . 3 Wheel 3 | . . . . . 4 6 6 6 13 11 8 Device 8 | . 14 7 . . 13 13 13 12 11 16 16 Storage 7 | . 14 7 . 13 6 6 6 2 6 5 4 Processor 6 | . . . . . 6 13 13 13 13 11 16 Protection 1 | . . 6 14 . 5 . . . 1 4 2 Ballistic Gun 9 | . 19 12 14 13 2 6 6 6 8 . . Ballistic Cannon 6 | . . 10 14 14 1 . . . . . . Launcher 1 | . 7 3 . . 4 6 3 . . . . Piercing Weapon 1 | . . . . . . . . 2 . 3 7 Peak Build Rating 114 | 7 8 15 16 31 65 69 69 77 79 87 114 Average Rating 45 | 5 7 12 15 22 57 66 65 68 77 84 96 On Entrance 41 | . 7 8 15 16 31 60 69 62 77 79 79 Naked Turns 25 | . . . . . . . . . . . 25 Heaviest Build 223 | 13 21 31 27 218 223 63 62 77 76 77 82 Greatest Support 66 | 40 40 40 43 43 66 28 30 48 48 48 55 Greatest Overweight (x) 5 | . . . . 5 3 2 2 2 1 1 3 Average Overweight (x) 1 | . . . . 2 1 2 1 1 1 1 1 Largest Inventory Capacity 35 | 8 10 10 5 35 35 20 20 20 20 20 20 Average Capacity 17 | 7 8 7 5 27 19 20 20 9 20 20 17 Most Carried 35 | 2 10 10 5 35 34 20 20 20 20 20 20 Average Carried 14 | . 6 7 5 20 16 19 19 9 19 17 17 Final Capacity 35 | 8 10 5 5 35 20 20 20 20 20 20 5 Final Carried 35 | 2 10 5 5 35 20 20 19 20 20 17 5 Class Distribution -------------------- 60% | Mutant 17% | Hauler-Mutant 8% | Derelict-Mutant 6% | Scavenger-Scrapper Dominant Class ---------------- Mutant | -10/Materials Mutant | -10/Subcaves Mutant | -9/Recycling Hauler-Mutant | -9/Scraptown Mutant | -6/Factory Mutant | -6/Lower Caves Mutant | -6/Lower Caves Mutant | -6/Zion Scavenger-Scrapper | -5/Proximity Caves Scavenger-Scrapper | -5/Factory Gladiator | -4/Factory Resources | -11 -10 -10 -9 -9 -6 -6 -6 -6 -5 -5 -4 ----------- Run | Yrd Mat Sub Rec Scr Fac Low Low Zio Pro Fac Fac Matter Collected 5884 | 330 191 649 11 550 283 536 139 793 767 51 1584 Remotely . | . . . . . . . . . . . . Salvage Created 4369 | 173 233 335 . . 305 . 92 285 459 95 2392 Parts 212 | 11 16 24 . . 8 . 7 16 6 13 111 Haulers Intercepted 4 | . 2 . . . . . . . . . 2 Recyclers Shooed . | . . . . . . . . . . . . Parts Field Recycled . | . . . . . . . . . . . . Retrieved Matter . | . . . . . . . . . . . . Parts Self-Destructed 52 | . . 10 . . . 11 10 4 17 . . Prevented . | . . . . . . . . . . . . Kills | -11 -10 -10 -9 -9 -6 -6 -6 -6 -5 -5 -4 ------- Run | Yrd Mat Sub Rec Scr Fac Low Low Zio Pro Fac Fac Combat Hostiles Destroyed 62 | . 8 12 . . 5 . 2 . 3 . 32 Melee 29 | . . . . . . . . . . . 29 Guns 16 | . 4 5 . . 2 . . . 3 . 2 Cannons 5 | . . 5 . . . . . . . . . AOE 11 | . 4 2 . . 2 . 2 . . . 1 Classes Destroyed 17 | 3 4 1 . . 3 . . 2 1 2 1 Worker 3 | 1 . . . . 1 . . . . 1 . Builder 2 | . . . . . . . . . . 2 . Tunneler 7 | 4 . . . . . . . . . 1 2 Hauler 4 | . 2 . . . . . . . . . 2 Recycler 3 | 1 . . . . 1 . . . . . 1 Operator 1 | . . . . . . . . . . 1 . Watcher 3 | . 1 . . . 1 . . . . . 1 Swarmer 10 | . 6 . . . 2 . . . . . 2 Cutter 3 | . . . . . . . . . . . 3 Grunt 15 | . 2 1 . . . . 1 . 2 . 9 Brawler 2 | . . . . . . . . . 1 . 1 Duelist 3 | . . . . . 1 . 1 . . . 1 Sentry 2 | . . . . . . . . 1 . . 1 Hunter 3 | . . . . . 1 . . . . . 2 Programmer 14 | . . . . . 1 . . . . . 13 Subdweller 11 | . . 11 . . . . . . . . . Scrapoid 3 | . . . . . . . . 3 . . . Best Kill Streak 7 | 3 3 2 . . 3 . 2 . 3 3 7 Combat Bots Only 7 | . 3 2 . . 3 . 2 . 3 . 7 Max Kills in Single Turn 3 | 1 3 2 . . 3 . 2 1 1 1 1 Gunslinging . | . . . . . . . . . . . . Exploded 2 | . 2 1 . . 2 . 2 . . . 1 Melee 1 | . . . . . . . . . . . 1 Uniques/NPCs Destroyed . | . . . . . . . . . . . . Combat | -11 -10 -10 -9 -9 -6 -6 -6 -6 -5 -5 -4 -------- Run | Yrd Mat Sub Rec Scr Fac Low Low Zio Pro Fac Fac Hostile Shots Fired 693 | . 25 43 . . 104 2 22 . 39 48 410 Missed 209 | . 9 12 . . 48 1 7 . 7 16 109 Damage Taken 10159 | . 139 1153 . . 811 61 397 . 726 498 6374 Core 1561 | . . 240 . . 47 . 48 . . 63 1163 Absorbed by Shields 65 | . . . . . . . . . . . 65 Redirected to Shielding 120 | . . . . . . . . . . . 120 Regen/Repaired (Parts) 614 | . . . . . 10 . . 528 . . 76 Core Remaining (%) 71 | 100 . . . 4 . . . . 88 93 . Volleys Fired 210 | 11 37 56 . . 22 11 22 6 18 5 22 Largest 2 | 2 2 2 . . 2 2 1 1 2 2 2 Hottest 140 | 40 100 119 . . 140 66 36 33 65 132 100 Shots Fired 307 | 22 56 87 . . 28 12 22 7 36 6 31 Gun 202 | 22 38 27 . . 25 9 18 2 36 2 23 Cannon 65 | . . 54 . . 1 . . . . 4 6 Launcher 20 | . 3 6 . . 2 3 4 . . . 2 Special 20 | . 15 . . . . . . 5 . . . Kinetic 230 | 22 38 69 . . 7 9 18 2 36 5 24 Thermal 45 | . 15 12 . . 12 . . . . 1 5 Explosive 18 | . 3 6 . . . 3 4 . . . 2 Electromagnetic 9 | . . . . . 9 . . . . . . Robot Hit Streak 22 | 9 5 8 . . 9 2 9 8 22 1 10 Robot Miss Streak 4 | 1 2 4 . . 3 3 2 1 2 1 2 Penetration Max 1 | . . . . . . . . . 1 . . Secondary Targets 2 | . 1 . . . . . . . . . 1 Max Gunslinging Chain 1 | . 1 . . . . . . . . . 1 Shots Hit Robots 299 | 16 23 38 . . 23 4 13 11 37 6 128 Core Hits 143 | 7 12 22 1 . 14 4 12 4 11 2 54 Critical Kills 2 | . . . . . . . . . 1 1 . Critical Parts Destroyed 9 | . . . . . . . 2 1 3 . 3 Critical Strikes 25 | . . 1 . . . . 2 1 4 2 15 Burn 1 | . . . . . . . . . . . 1 Destroy 11 | . . . . . . . 2 1 4 1 3 Blast 1 | . . 1 . . . . . . . . . Impale 10 | . . . . . . . . . . 1 9 Melee Attacks 197 | . . . . . 1 . . 6 8 14 168 Impact . | . . . . . . . . . . . . Slashing 32 | . . . . . 1 . . . . . 31 Piercing 165 | . . . . . . . . 6 8 14 137 Sneak Attacks 16 | . . . . . . . . 6 . 4 6 Combat Hostiles . | . . . . . . . . . . . . Follow-up Attacks 14 | . . . . . . . . . . . 14 Damage Inflicted 11265 | 215 500 1075 1 . 1095 288 484 422 1016 323 5846 Guns 2509 | 215 290 425 . . 571 53 72 6 494 20 363 Cannons 419 | . . 361 . . 58 . . . . . . Explosions 1712 | . 182 289 . . 466 235 412 . . . 128 Melee 6596 | . . . . . . . . 416 522 303 5355 Ramming 5 | . 4 . 1 . . . . . . . . Kinetic 2249 | 215 290 673 . . 120 53 72 6 494 20 306 Thermal 772 | . 24 113 . . 578 . . . . . 57 Explosive 1387 | . 182 289 . . 141 235 412 . . . 128 Electromagnetic 256 | . . . . . 256 . . . . . . Impact . | . . . . . . . . . . . . Slashing 1097 | . . . . . . . . . . . 1097 Piercing 5499 | . . . . . . . . 416 522 303 4258 Highest Corruption 19 | . . . . . 1 1 1 1 . 1 19 Average Corruption 4 | . . . . . 1 1 1 1 . 1 9 Corruption Purged 5 | . . . . . . . . . . . 5 Corruption Blocked . | . . . . . . . . . . . . Effects 80 | . . . . . 3 10 3 1 . 4 59 Message Errors 17 | . . . . . . 5 1 . . 1 10 Matter Fused 27 | . . . . . 1 4 . . . . 22 Heat Flow Errors 7 | . . . . . . . . . . . 7 Energy Discharges 5 | . . . . . . . . . . 1 4 Parts Fused 1 | . . . . . . . . . . . 1 Data Loss (minor) 13 | . . . . . 1 1 2 . . . 9 Data Loss (major) 4 | . . . . . 1 . . . . 1 2 Misfires 1 | . . . . . . . . 1 . . . Alerts 3 | . . . . . . . . . . 1 2 Misdirections 2 | . . . . . . . . . . . 2 Overload Shots . | . . . . . . . . . . . . Overflow Damage 573 | . . . . . 24 . 2 . 24 138 385 Projectiles . | . . . . . . . . . . . . Explosions 26 | . . . . . 24 . 2 . . . . Melee 547 | . . . . . . . . . 24 138 385 Knockbacks 3 | . . 3 . . . . . . . . . Impact . | . . . . . . . . . . . . Kinetic 3 | . . 3 . . . . . . . . . Secondary . | . . . . . . . . . . . . Self-Inflicted Damage 79 | . . . . . 79 . . . . . . Shots 2 | . . . . . 2 . . . . . . Rammed 1 | . . . 1 . . . . . . . . Targets Rammed 2 | . 1 . 1 . . . . . . . . Kicked . | . . . . . . . . . . . . Crushed 1 | . 1 . . . . . . . . . . Highest Temperature 269 | . 106 13 . . 179 2 . . 100 72 269 Average Temperature 57 | . 49 6 . . 61 1 . . 45 40 91 Received Heat Transfer 1191 | . 18 87 . . 30 . 92 . 234 . 730 Siege Activations . | . . . . . . . . . . . . Robots Corrupted 1 | . . . . . 1 . . . . . . Combat Hostiles 1 | . . . . . 1 . . . . . . Parts Fried 3 | . . . . . 3 . . . . . . Impact Corruptions . | . . . . . . . . . . . . Robots Melted . | . . . . . . . . . . . . Combat Hostiles . | . . . . . . . . . . . . Parts Melted . | . . . . . . . . . . . . Heat Transferred 1198 | . 50 148 . . 800 . . . . . 200 Parts Sabotaged . | . . . . . . . . . . . . Parts Stolen . | . . . . . . . . . . . . Parts Stripped . | . . . . . . . . . . . . Power Chain Reactions . | . . . . . . . . . . . . Alert | -11 -10 -10 -9 -9 -6 -6 -6 -6 -5 -5 -4 ------- Run | Yrd Mat Sub Rec Scr Fac Low Low Zio Pro Fac Fac Peak Influence 1112 | 30 197 . . . 192 . . . . 34 1112 Initial 19 | . 19 . . . . . . . . . 4 Average 160 | 12 89 . . . 59 . . . . 9 340 Maximum Alert Level 4 | . . . . . . . . . . . 4 Low Security (%) 87 | 100 100 . 100 . 100 . . . . 100 66 Level 1 1 | . . . . . . . . . . . 3 Level 2 . | . . . . . . . . . . . 2 Level 3 10 | . . . . . . . . . . . 27 Level 4 . | . . . . . . . . . . . . Level 5 . | . . . . . . . . . . . . High Security . | . . . . . . . . . . . . Max Security . | . . . . . . . . . . . . Squads Dispatched 23 | . 1 . . . 2 . 1 . . 3 16 Investigation 1 | . . . . . . . . . . . 1 Extermination 8 | . . . . . 2 . . . . . 6 Reinforcement 9 | . 1 . . . . . . . . 3 5 Assault 5 | . . . . . . . 1 . . . 4 Garrison . | . . . . . . . . . . . . Intercept . | . . . . . . . . . . . . Searches Triggered . | . . . . . . . . . . . . Construction Impeded . | . . . . . . . . . . . . Haulers Reinforced . | . . . . . . . . . . . . Active Scanning Responses . | . . . . . . . . . . . . Cargo Convoy Interrupts . | . . . . . . . . . . . . Stealth | -11 -10 -10 -9 -9 -6 -6 -6 -6 -5 -5 -4 --------- Run | Yrd Mat Sub Rec Scr Fac Low Low Zio Pro Fac Fac Distress Signals 5 | . 3 . . . . . . . . . 2 Communications Jammed . | . . . . . . . . . . . . Distress Signals . | . . . . . . . . . . . . Times Spotted 136 | . 16 13 . . 8 6 6 1 6 7 73 Peak Tracking Total 10 | . 4 2 . . 3 4 7 1 3 4 10 Tactical Retreats 14 | . . . . . 1 . 2 . . . 11 Traps | -11 -10 -10 -9 -9 -6 -6 -6 -6 -5 -5 -4 ------- Run | Yrd Mat Sub Rec Scr Fac Low Low Zio Pro Fac Fac Traps Triggered 11 | . . . . . 3 . . . . . 8 Indirectly . | . . . . . . . . . . . . Trap Hack Attempts . | . . . . . . . . . . . . Triggered . | . . . . . . . . . . . . Disarmed . | . . . . . . . . . . . . Reprogrammed . | . . . . . . . . . . . . Reused 1 | . . . . . . . . . . . 1 Traps Extracted . | . . . . . . . . . . . . Installed 1 | . . . . . . . . . . . 1 Triggered 1 | . . . . . . . . . . . 1 Most Traps Carried 1 | . . . . 1 1 1 1 1 1 1 1 Machines | -11 -10 -10 -9 -9 -6 -6 -6 -6 -5 -5 -4 ---------- Run | Yrd Mat Sub Rec Scr Fac Low Low Zio Pro Fac Fac Machines Disabled 20 | . . . . . 5 1 . . . . 14 Max in Single Turn 3 | . . . . . 3 1 . . . . 1 Garrison Access 1 | . . . . . . . . . . . 1 Machines Repaired . | . . . . . . . . . . . . Machines Dismantled . | . . . . . . . . . . . . Machines Sabotaged . | . . . . . . . . . . . . Overloaded Fab Kills . | . . . . . . . . . . . . Hacking | -11 -10 -10 -9 -9 -6 -6 -6 -6 -5 -5 -4 --------- Run | Yrd Mat Sub Rec Scr Fac Low Low Zio Pro Fac Fac Machines Accessed 31 | . 7 1 2 2 5 3 . . . 1 10 Terminals 20 | . 7 . 2 . 3 . . . . . 8 Fabricators . | . . . . . . . . . . . . Repair Stations 1 | . . . . . 1 . . . . . . Recycling Units 1 | . . . . . . . . . . . 1 Scanalyzers 2 | . . . . . 1 . . . . 1 . Garrison Access 1 | . . . . . . . . . . . 1 Total Hacks 78 | . 19 4 6 6 13 7 . . . 7 16 Successful 46 | . 7 4 4 6 6 7 . . . 6 6 Failed 32 | . 12 . 2 . 7 . . . . 1 10 Catastrophic 8 | . 3 . . . 1 . . . . . 4 Database Lockouts . | . . . . . . . . . . . . Manual 31 | . 12 . . . 5 . . . . . 14 Terminals 46 | . 19 . 6 . 7 . . . . . 14 Fabricators . | . . . . . . . . . . . . Repair Stations 1 | . . . . . 1 . . . . . . Recycling Units 1 | . . . . . . . . . . . 1 Scanalyzers 12 | . . . . . 5 . . . . 7 . Garrison Access 1 | . . . . . . . . . . . 1 Terminal Hacks 30 | . 7 4 4 6 1 7 . . . . 1 Record 14 | . . 4 . 5 . 5 . . . . . Robot Analysis 2 | . 2 . . . . . . . . . . Open Door 3 | . . . . 1 . 2 . . . . . Branch Access Points 1 | . . . . . . . . . . . 1 Terminal Index 1 | . 1 . . . . . . . . . . Locate Traps 3 | . 2 . . . 1 . . . . . . Dispatch Records 1 | . . . 1 . . . . . . . . Transport Status 1 | . . . 1 . . . . . . . . Zone Layout 4 | . 2 . 2 . . . . . . . . Fabricator Hacks . | . . . . . . . . . . . . Repair Station Hacks . | . . . . . . . . . . . . Recycling Unit Hacks . | . . . . . . . . . . . . Scanalyzer 9 | . . . . . 3 . . . . 6 . Insert Component 5 | . . . . . 2 . . . . 3 . Analyze 4 | . . . . . 1 . . . . 3 . Garrison Access Hacks 1 | . . . . . . . . . . . 1 Seal Access 1 | . . . . . . . . . . . 1 Unauthorized Hacks 6 | . . . . . 2 . . . . . 4 Terminals 5 | . . . . . 2 . . . . . 3 Botnet 5 | . . . . . 2 . . . . . 3 Fabricators . | . . . . . . . . . . . . Repair Stations 1 | . . . . . . . . . . . 1 Recycling Units . | . . . . . . . . . . . . Scrapoids 1 | . . . . . . . . . . . 1 Scanalyzers . | . . . . . . . . . . . . Garrison Access . | . . . . . . . . . . . . Data Cores Recovered . | . . . . . . . . . . . . Used . | . . . . . . . . . . . . Hacking Detections 21 | . 6 . 2 . 4 . . . . 1 8 Full Trace Events 1 | . . . 1 . . . . . . . . Feedback Events . | . . . . . . . . . . . . Feedback Blocked . | . . . . . . . . . . . . Robot Schematics Acquired . | . . . . . . . . . . . . Robots Built . | . . . . . . . . . . . . Authchips . | . . . . . . . . . . . . Time . | . . . . . . . . . . . . Total Robot Build Rating . | . . . . . . . . . . . . Part Schematics Acquired 4 | . . . . . 1 . . . . 3 . Parts Built . | . . . . . . . . . . . . Authchips . | . . . . . . . . . . . . Time . | . . . . . . . . . . . . Total Part Build Rating . | . . . . . . . . . . . . Parts Repaired . | . . . . . . . . . . . . Time . | . . . . . . . . . . . . Parts Recycled . | . . . . . . . . . . . . Recycled Matter . | . . . . . . . . . . . . Retrieved Matter . | . . . . . . . . . . . . Retrieved Components . | . . . . . . . . . . . . Parts Scanalyzed 4 | . . . . . 2 . . . . 2 . Part Schematics Acquired 4 | . . . . . 1 . . . . 3 . Parts Damaged . | . . . . . . . . . . . . Bothacking | -11 -10 -10 -9 -9 -6 -6 -6 -6 -5 -5 -4 ------------ Run | Yrd Mat Sub Rec Scr Fac Low Low Zio Pro Fac Fac Used RIF Installer . | . . . . . . . . . . . . Robots Hacked 3 | . . . . . . . . 3 . . . Non-combat . | . . . . . . . . . . . . Combat 3 | . . . . . . . . 3 . . . Robot Hacks Applied 4 | . . . . . . . . 4 . . . parse_system 4 | . . . . . . . . 4 . . . Relay Couplers Released . | . . . . . . . . . . . . Fabnet Peak Effective % . | . . . . . . . . . . . . Robots Rewired 2 | . . . . . . . 1 . . 1 . Allies Hacked 1 | . . . . . . . . . 1 . . Hacks Repelled . | . . . . . . . . . . . . Allies | -11 -10 -10 -9 -9 -6 -6 -6 -6 -5 -5 -4 -------- Run | Yrd Mat Sub Rec Scr Fac Low Low Zio Pro Fac Fac Total Allies 12 | . . . . . . . 1 5 . 1 5 Largest Group 5 | . . . . . . . 1 5 2 1 5 Highest-Rated Group 238 | . . . . . . . 32 238 94 12 235 Highest-Rated Ally 50 | . . . . . . . 32 50 47 12 47 Total Orders 4 | . . . . . . . . . 2 2 . STAY 1 | . . . . . . . . . . 1 . FOLLOW 1 | . . . . . . . . . . 1 . EXPLORE 2 | . . . . . . . . . 2 . . Ally Attacks 84 | . . . . . . . . . 10 3 71 Total Damage 2153 | . . . . . . . . . 235 27 1891 Kills 13 | . . . . . . . . . 2 . 11 Allies Corrupted . | . . . . . . . . . . . . Allies Melted . | . . . . . . . . . . . . Intel | -11 -10 -10 -9 -9 -6 -6 -6 -6 -5 -5 -4 ------- Run | Yrd Mat Sub Rec Scr Fac Low Low Zio Pro Fac Fac Robot Analysis Total 2 | . 2 . . . . . . . . . . Derelict Logs Recovered 11 | . . 2 . 2 . 3 1 2 1 . . Drone Launches 2 | . . . . . . . . . 2 . . Drone Recoveries . | . . . . . . . . . . . . Exploration | -11 -10 -10 -9 -9 -6 -6 -6 -6 -5 -5 -4 ------------- Run | Yrd Mat Sub Rec Scr Fac Low Low Zio Pro Fac Fac Turns Passed 29038 | 264 1004 3074 641 9529 1278 1651 617 7347 812 505 2316 Spaces Moved 14662 | 135 496 1773 394 2675 812 1182 418 4009 648 390 1730 Core 48 | 3 . . . . . . . . . . 45 Treads 5756 | 132 496 1773 394 2675 141 . 2 . . . 143 Legs . | . . . . . . . . . . . . Wheels 8650 | . . . . . 671 1182 416 4009 648 390 1334 Hover 138 | . . . . . . . . . . . 138 Flight 70 | . . . . . . . . . . . 70 Fastest Speed 40 | 50 160 160 160 160 115 130 115 85 97 97 40 Average Speed 166 | 157 160 160 160 354 138 130 129 115 97 97 98 Slowest Speed 610 | 160 160 160 160 610 418 130 240 130 97 97 255 Overloaded Moves . | . . . . . . . . . . . . Propulsion Burnouts . | . . . . . . . . . . . . Robots Hopped 4 | . . . . . . . . 4 . . . Cave-ins Triggered 1 | . . 1 . . . . . . . . . Exploration Rate (%) 58 | 7 90 72 71 94 15 96 49 86 77 8 38 Regions Visited 11 Branch Regions 7 Pre-discovered Areas 6 | . . 3 . 1 . 1 . 1 . . . Known Exits Taken 6 | . . . . . 1 1 1 1 1 1 . Unknown Exits Taken 5 | 1 1 1 1 1 . . . . . . . Scrap Searched 25 | . . 4 . 9 . 3 3 2 4 . . Spaces Dug 46 | . . . . . 1 . 10 . . 7 28 Terrain Destroyed 260 | . 19 38 . . 61 24 23 . 15 8 72 Melee 30 | . . . . . 1 . . . . 6 23 Projectile 28 | . 1 1 . . . . . . 15 2 9 AOE 200 | . 18 37 . . 60 24 21 . . . 40 Terrain Rammed . | . . . . . . . . . . . . Walls Destroyed . | . . . . . . . . . . . . Machines Disabled . | . . . . . . . . . . . . Actions | -11 -10 -10 -9 -9 -6 -6 -6 -6 -5 -5 -4 --------- Run | Yrd Mat Sub Rec Scr Fac Low Low Zio Pro Fac Fac Total 18653 | 161 622 1924 405 2739 943 1287 469 6720 787 480 2116 Wait 3110 | 7 68 64 9 . 22 67 3 2640 104 62 64 Move 14642 | 134 495 1771 393 2674 811 1181 417 4000 647 389 1730 Hop 4 | . . . . . . . . 4 . . . Pick Up 157 | 2 10 5 . 48 24 8 1 22 1 . 36 Fast Attach 58 | 7 . 2 . 4 6 1 1 9 1 . 27 Attach 39 | . . 2 . . 10 . 1 4 1 3 18 Detach 9 | . . . . . 3 . . 5 1 . . Swap 87 | . 6 11 1 2 15 9 . 12 4 4 23 Drop 106 | . 5 11 1 11 29 9 1 12 2 . 25 Fire 210 | 11 37 56 . . 22 11 22 6 18 5 22 Melee 175 | . . . . . 1 . . 6 8 14 146 Ram . | . . . . . . . . . . . . Kick . | . . . . . . . . . . . . Crush 2 | . 1 . 1 . . . . . . . . Escape Stasis 25 | . . 1 . . . . . . . . 24 Rewire 26 | . . . . . . . 23 . . 3 . Trap 1 | . . . . . . . . . . . 1 Miscellaneous 2 | . . 1 . . . 1 . . . . . Route ------- -11/Scrapyard -10/Materials (discovered 5 exits: [*Mat x3] / [*Min] / *Sub) -10/Subcaves (discovered 2 exits: [*Mat] / *Rec) -9/Recycling (discovered 2 exits: [*Fac] / *Scr) -9/Scraptown (discovered 2 exits: *Fac x2) -6/Factory (discovered 2 exits: *Fac / *Low) -6/Lower Caves -6/Lower Caves -6/Zion (discovered 2 exits: Dee / *Pro) -5/Proximity Caves -5/Factory (discovered 4 exits: *Fac x3 / Ext) -4/Factory (discovered 5 exits: *Res x2 / Upp x2 / Arm) History --------- Turn | Location | Event 6 | -11/Scrapyard | Discovered new exit (range 16) 265 | -11/Scrapyard | Entered Materials 310 | -10/Materials | Build established: Mutant 431 | -10/Materials | Discovered new exit (range 17) 820 | -10/Materials | Discovered new exit (range 10) 945 | -10/Materials | Discovered new exit (range 13) 1068 | -10/Materials | Discovered new exit (range 9) 1263 | -10/Materials | Discovered new exit (range 3) 1269 | -10/Materials | Entered Subcaves 1450 | -10/Subcaves | Learned location of Zion (-6) 1806 | -10/Subcaves | Disturbed a concealed Subdweller 1881 | -10/Subcaves | Shifting Twisted Machinery released Mak. Leg 1936 | -10/Subcaves | Shifting Twisted Machinery released Mak. Shrapnel Gun 1951 | -10/Subcaves | Shifting Twisted Machinery released Sub. Optics 2024 | -10/Subcaves | Shifting Twisted Machinery released Mak. Laser 2235 | -10/Subcaves | A swath of the cavern ceiling suddenly collapsed 2378 | -10/Subcaves | Discovered new exit (range 4) 2394 | -10/Subcaves | Crushed by falling debris 2395 | -10/Subcaves | Core integrity fell below 50% 2395 | -10/Subcaves | Core integrity fell below 20% 3233 | -10/Subcaves | A swath of the cavern ceiling suddenly collapsed 3455 | -10/Subcaves | Curiously followed by a Cobbler waking with a query about "LVR3C" 3461 | -10/Subcaves | Met a Zionite searching for "candidates" 3758 | -10/Subcaves | Discovered new exit (range 15) 3887 | -10/Subcaves | Visited Clippyterm 3892 | -10/Subcaves | Learned location of Extension (-5) 4343 | -10/Subcaves | Entered Recycling 4712 | -9/Recycling | Discovered new exit (range 7) 4941 | -9/Recycling | Scanned before Scraplab entrance 4965 | -9/Recycling | Entered Scraplab 4978 | -9/Recycling | Discovered new exit (range 4) 4984 | -9/Recycling | Entered Scraptown 5548 | -9/Scraptown | Scanned Subdweller tech in exchange for log data 5553 | -9/Scraptown | Learned Factory machine intel 5623 | -9/Scraptown | Visited Symbiants 5718 | -9/Scraptown | Visited Comm Corps 6176 | -9/Scraptown | Heard Great Nut preacher, LISTEN AND RECITE! 6226 | -9/Scraptown | Visited UFD Registry 6226 | -9/Scraptown | Registered with UFD as "Steamslasher" 6246 | -9/Scraptown | Visited The Evicted 6281 | -9/Scraptown | Visited CPS Storage 6321 | -9/Scraptown | Visited Fellowship of the Rings 6523 | -9/Scraptown | Discovered new exit (range 13) 6943 | -9/Scraptown | Visited TADAMA 6986 | -9/Scraptown | Visited Bundlers 7280 | -9/Scraptown | Visited Curators Association 7373 | -9/Scraptown | Visited Derelict Rescue Squad 7408 | -9/Scraptown | Found DRS Beacon 7452 | -9/Scraptown | Build established: Derelict-Mutant 7544 | -9/Scraptown | Delivered Scrap Shield to a Scientist 7819 | -9/Scraptown | Visited Science Testing Area 7999 | -9/Scraptown | Visited Sword Containment 8064 | -9/Scraptown | Visited Science Guys 8126 | -9/Scraptown | Visited Junk Repository 8201 | -9/Scraptown | Visited Scrapoid Pod Storage 8216 | -9/Scraptown | Found Scrapoid Pod 8267 | -9/Scraptown | Visited Abandonware Association 8307 | -9/Scraptown | Learned abandonware demo "HACKBUD.EXE" 8555 | -9/Scraptown | Visited Scrap Suit Storage 8961 | -9/Scraptown | Discovered new exit (range 5) 10022 | -9/Scraptown | Build established: Hauler-Mutant 12855 | -9/Scraptown | Found Scrap Suit 12868 | -9/Scraptown | Found Scrap Suit 14513 | -9/Scraptown | Entered Factory 14513 | -6/Factory | Evolved 8 slots: Propulsion x4, Utility x4 14514 | -6/Factory | Loaded intel: 254 machine locations 14938 | -6/Factory | Discovered new exit (range 3) 14982 | -6/Factory | Build established: Mutant 15192 | -6/Factory | Identified exit to Factory 15354 | -6/Factory | Discovered new exit (range 9) 15362 | -6/Factory | Identified exit to Lower Caves 15791 | -6/Factory | Entered Lower Caves 15793 | -6/Lower Caves | UFD Scientist delivered a prototype 15799 | -6/Lower Caves | Found Prototype Protection 15985 | -6/Lower Caves | Encountered a Warlord checkpoint 16261 | -6/Lower Caves | Learned location of 1 exit from Research 16261 | -6/Lower Caves | Learned 8 Factory zone layouts 16261 | -6/Lower Caves | Learned Research trap positions 16328 | -6/Lower Caves | Learned 4 Factory zone layouts 16411 | -6/Lower Caves | Activated DRS Beacon 16575 | -6/Lower Caves | Discovered new exit (range 8) 16591 | -6/Lower Caves | Identified exit to Lower Caves 17178 | -6/Lower Caves | Learned Factory emergency access door positions 17442 | -6/Lower Caves | Entered another Lower Caves area 17553 | -6/Lower Caves | Learned 4 Factory zone layouts 17689 | -6/Lower Caves | Encountered a Warlord checkpoint 17732 | -6/Lower Caves | Attracted the attention of an 0b10 outpost 17797 | -6/Lower Caves | Lost 3 parts (1p1n1w) 17942 | -6/Lower Caves | Discovered new exit (range 5) 17948 | -6/Lower Caves | Identified exit to Zion 18059 | -6/Lower Caves | Entered Zion 18059 | -6/Zion | Accompanied by 1 ally 18079 | -6/Zion | Found CR-A16's Pointy Stick 18132 | -6/Zion | Identified exit to Deep Caves 18185 | -6/Zion | System corruption cleaned by Quarantine Array 18243 | -6/Zion | Discovered new exit (range 14) 18483 | -6/Zion | Found Prototype Device 18483 | -6/Zion | Identified Phasing AFG 18643 | -6/Zion | Learned Factory stockpile data 18874 | -6/Zion | Visited the Megawrench Repair Shop 20781 | -6/Zion | Turned away by Imprinter 24800 | -6/Zion | Scrapoid Pod released 06Z05-D (x5) 25076 | -6/Zion | Megawrench repaired 10 parts 25158 | -6/Zion | Found Scrap Suit 25402 | -6/Zion | Identified exit to Proximity Caves 25406 | -6/Zion | Entered Proximity Caves 25406 | -5/Proximity Caves | Accompanied by 2 allies 25441 | -5/Proximity Caves | Build established: Scavenger-Scrapper 25585 | -5/Proximity Caves | Found Scrap Suit 26022 | -5/Proximity Caves | Learned Factory security intel 26187 | -5/Proximity Caves | Discovered exit to Factory (range 8) 26216 | -5/Proximity Caves | Attracted the attention of an 0b10 checkpoint 26218 | -5/Proximity Caves | Entered Factory 26218 | -5/Factory | Evolved 2 slots: Utility x2 26219 | -5/Factory | Identified exit to Extension 26220 | -5/Factory | Identified exit to Factory 26583 | -5/Factory | Discovered exit to Factory (range 15) 26723 | -5/Factory | Entered another Factory area 26723 | -4/Factory | Evolved 2 slots: Utility x2 26724 | -4/Factory | Identified exit to Research 26873 | -4/Factory | Found Prototype Device 26874 | -4/Factory | Identified Exp. ECM Suite 27019 | -4/Factory | Build established: Scavenger-Mutant 27621 | -4/Factory | Build established: Gladiator 27710 | -4/Factory | Lost 3 parts (3n) 28030 | -4/Factory | Discovered exit to Research (range 5) 28188 | -4/Factory | Build established: Infiltrator-Scrapper 28297 | -4/Factory | System corruption reached 10% 28307 | -4/Factory | Scrapoids reinforcements arrived? 28405 | -4/Factory | Lost 5 allies 28473 | -4/Factory | First assault squad dispatched 28540 | -4/Factory | Lost 4 parts (1p1n2u) 28557 | -4/Factory | Destroyed 7 combat bots 28636 | -4/Factory | Lost 4 parts (1p2n1u) 28709 | -4/Factory | Core integrity fell below 50% 28709 | -4/Factory | Identified exit to Upper Caves 28709 | -4/Factory | Identified exit to Armory 28718 | -4/Factory | Released all parts (11) 28748 | -4/Factory | Lost 4 parts (1p2n1u) 28956 | -4/Factory | Lost 5 parts (2n3u) 29016 | -4/Factory | Core integrity fell below 20% 29039 | -4/Factory | Destroyed by G-67 Veteran with Plasma Rifle Last Messages --------------- 29018_ Wheel destroyed. 29018_ Imp. Antigrav System destroyed. 29021_ System corrupted: Heat flow error (+148). 29021_ K-01 Serf collects debris. 29025_ Destroyed Adv. Heat Sink. 29025_ K-01 Serf collects debris. 29026_ Lgt. Antimatter Reactor destroyed. 29026_ Critical hit (Burn: +37). 29027_ Destroyed Lgt. Antimatter Reactor. 29027_ G-67 Veteran destroyed. 29027_ Imp. Medium Armor Plating destroyed. 29028_ K-01 Serf collects debris. 29029_ Field Propulsion Array destroyed. 29030_ Destroyed Adv. Heat Sink. 29030_ Plasma Lance follow-up attack on G-67 Veteran. 29033_ K-01 Serf collects debris. 29035_ Myomer Leg destroyed. 29037_ G-67 Veteran heat damages Plasma Rifle. 29038_ G-67 Veteran overheating. [Achievement: I Think I Know What's Going On] Map ----- +----------------------------------------------------+ | ?????????????????????????????????????????????????? | | ?????????????????????????????????????????????????? | | ?????????????????????????????????????????????????? | | ?????????????????????????????????????????????????? | | ?????????????????????????????????????????????????? | | ?????????????????????????????????????????????????? | | ?????????????????????????????????????????????????? | | ?????????????????????????????????????????????????? | | ?????????????????????????????????????????????????? | | ?????????????????????????????????????????????????? | | ?????????????????????????????????????????????????? | | ?????????????????????????????????????????????????? | | ?????????????????????????????????????????????????? | | ?????????????????????????????????????????????????? | | ?????????????????????????????????????????????????? | | ?????????????????????????############????????????? | | ????????????????????#???? ########?????? | | ????????????????????# ?"""" """" # #?????? | | ????????????????????# """" """" # #?????? | | ????????????????????# """" """" # #??#### | | ????????????????????# """" """" + #### | | ????????????????????# """" """" # + + | | ????????????????????# """" """" g # # # | | ????????????????????# ###+#### # | | ????????????????????# g + | | ???????????########?# g@ g # ##### # | | ???????????# #?########/######## #???# # | | ???????????# #??????# #???# # | | ???????????# #??????# % ##########???#%# | | ???????? ??# #??????# #????????????#=#### | | ????#? ?# ######## #???######?###*###? | | ????# ?# [+ #???# # #? | | ????# ?# !^!# #???# # #? | | ???## ?# !!# #???# #? | | ???? ## !!*# #???# # #? | | ????# ## ]|/# #???# # #? | | ????# ## []!# #???# ?## ##? | | ????# ## !# #???#####???# #?? | | ????# ## # #???????????# #?? | | ????# ## # ###+####???????????# #?? | | ????# #####/### #??????????????????# #?? | | ????# #??????????????????## ##?? | | ????# #???????????????????# #??? | | ????# """ #???????????????????# #??? | | ????# ! """ #???????????????????# #??? | | ????# ^ = """ #???????????????????# #??? | | ########+### #???????????????????# #??? | | # """ #???????????????????# #??? | | "" """ # ! """ ????????????????????# #??? | | """ """ # """ #???????????????????# #??? | +----------------------------------------------------+ Best States ------------- Heat Dissipation 43 Energy Generation 35 Energy Capacity 665 Matter Stores 300 Matter Capacity 300 Sight Range 16 Robot Scan Range 15 Terrain Scan Range 20 Terrain Scan Density 210 ECM Strength 3 Jamming Range 16 Power Amplification 30 Armor Coverage 800 Utility Shielding 66 Melee Speed Boost 20 Phase Shifting 10 Evasion (%) 62 Targeting Accuracy 6 Melee Accuracy 19 Recoil Reduction 4 Force Boost 30 Salvage Targeting 4 Defensive Hacking 10 Item Schematics ----------------- Imp. System Restoration Module | -6/Factory | Scanalyzed CPS Tube | -5/Factory | Scanalyzed Ovr. Huge Scrapsphere | -5/Factory | Scanalyzed Bore Cannon | -5/Factory | Scanalyzed Robot Schematics ------------------ None Fabricated ------------ Nothing Alien Tech Used ----------------- None Achievements -------------- I Think I Know What's Going On Challenges ------------ None Game ------ Seed ThiefGuidedProcessor Manual? 0 Play Time 02:36:04 Cumulative 111.5 hours Start 2024.08.23 @ 01:00:09 End 2024.08.23 @ 18:57:08 Sessions 5 Manual Loads 0 Difficulty Rogue Special Mode None Game No. 92 Rogue 92 Adventurer 0 Explorer 0 Win Type - Total 0 Types 0/0/0/0/0/0/0/0/0 Lore% 50 Gallery% 58 Achievement% 48 Wizard Run 0 Options --------- Layout 2 ASCII 0 Keyboard 1 Movement Vi Keybinds 0 Fullscreen 1 Font 32/SmallcapsGlow Map View 77x44 Zoom Use 0% Tactical HUD 1 Map Filters NONE Filters NONE Steam 1 RUN: 02b735cc-5364-4e65-a69a-ff8595bf7a02